bitfinex/quotes_SOLUSD_20250425
["timestamp","ask_amount","ask_price","bid_price","bid_amount"]
[1745565197546,29.50675826,153.62,153.61,0.063]
[1745565198323,12.96,153.66,153.61,0.063]
[1745565198831,10.8571094,153.64,153.61,0.063]
[1745565199037,18.64964886,153.63,153.61,0.063]
[1745565199215,10.8571094,153.62,153.61,0.063]
[1745565200118,10.8571094,153.63,153.61,0.063]
[1745565201726,10.8571094,153.64,153.61,1.6703]
[1745565202043,10.8571094,153.65,153.61,12.5274094]
[1745565202552,18.64964886,153.71,153.64,10.8571094]
[1745565202849,10.8571094,153.68,153.64,10.8571094]
[1745565203946,10.8571094,153.67,153.63,10.8571094]
[1745565204332,10.8571094,153.64,153.61,1.6703]
[1745565204533,10.8571094,153.63,153.61,1.6703]
[1745565205048,10.8571094,153.65,153.61,1.6703]
[1745565205230,44.64964886,153.71,153.61,12.5274094]
[1745565205426,10.8571094,153.66,153.62,10.8571094]
[1745565205850,10.8571094,153.65,153.61,12.5274094]
[1745565206426,10.8571094,153.66,153.62,10.8571094]
[1745565206854,10.8571094,153.66,153.61,1.6703]
[1745565206855,10.8571094,153.66,153.61,12.5274094]
[1745565207053,10.8571094,153.63,153.61,1.6703]
[1745565207558,10.8571094,153.64,153.61,1.6703]
[1745565207730,10.8571094,153.65,153.61,1.6703]
[1745565208145,10.8571094,153.66,153.61,12.5274094]
[1745565208644,10.8571094,153.65,153.61,12.5274094]
[1745565208819,10.8571094,153.66,153.61,19.03739464]
[1745565209024,10.8571094,153.66,153.62,10.8571094]
[1745565210021,10.8571094,153.65,153.61,12.5274094]
[1745565210241,10.8571094,153.65,153.61,1.6703]
[1745565210546,10.8571094,153.64,153.61,1.6703]
[1745565211055,10.8571094,153.66,153.61,12.5274094]
[1745565211439,10.8571094,153.65,153.61,12.5274094]
[1745565211635,10.8571094,153.66,153.62,10.8571094]
[1745565211837,10.8571094,153.67,153.62,10.8571094]
[1745565212055,10.8571094,153.67,153.63,10.8571094]
[1745565213156,10.8571094,153.67,153.62,10.8571094]
[1745565213347,10.8571094,153.66,153.62,10.8571094]
[1745565215349,10.8571094,153.66,153.61,1.6703]
[1745565215657,10.8571094,153.66,153.61,12.5274094]
[1745565216432,10.8571094,153.65,153.61,1.6703]
[1745565217538,6.94230002,153.65,153.61,1.6703]
[1745565219738,6.94230002,153.62,153.61,1.6703]
[1745565219938,6.94230002,153.63,153.61,1.6703]
[1745565220453,6.94230002,153.64,153.61,1.6703]
[1745565221232,6.94230002,153.65,153.61,1.6703]
[1745565221434,6.94230002,153.64,153.61,1.6703]
[1745565222945,6.94230002,153.65,153.61,8.61260002]
[1745565223347,6.94230002,153.65,153.61,1.6703]
[1745565223639,6.94230002,153.62,153.61,1.6703]
[1745565223859,6.94230002,153.62,153.61,0.063]
[1745565224275,51.59194888,153.62,153.61,0.063]
[1745565224456,51.59194888,153.62,153.56,0.063]
[1745565224457,18.64964886,153.59,153.56,0.063]
[1745565224767,6.94230002,153.57,153.56,0.063]
[1745565225246,18.64964886,153.61,153.56,0.063]
[1745565225563,10.86030001,153.57,153.56,0.063]
[1745565226336,29.50994887,153.57,153.56,0.063]
[1745565226562,10.86030001,153.76,153.58,1.6241]
[1745565226796,10.86030001,153.67,153.61,0.14216157]
[1745565227068,10.86030001,153.65,153.61,26.0]
[1745565227266,10.86030001,153.67,153.62,0.14216157]
[1745565227566,10.86030001,153.68,153.63,10.86030001]
[1745565228147,10.86030001,153.69,153.64,10.86030001]
[1745565228752,10.86030001,153.68,153.63,10.86030001]
[1745565229165,10.86030001,153.67,153.62,11.00246158]
[1745565229342,10.86030001,153.66,153.62,0.14216157]
[1745565229679,10.86030001,153.67,153.62,11.00246158]
[1745565231365,10.86030001,153.69,153.64,10.86030001]
[1745565231551,10.86030001,153.69,153.62,0.14216157]
[1745565231759,10.86030001,153.69,153.64,10.86030001]
[1745565232749,10.86030001,153.67,153.63,10.86030001]
[1745565233069,10.86030001,153.67,153.62,11.00246158]
[1745565233275,10.86030001,153.66,153.61,10.86030001]
[1745565233784,10.86030001,153.65,153.6,24.40030001]
[1745565234772,10.86030001,153.64,153.6,24.40030001]
[1745565234983,10.86030001,153.62,153.59,1.6241]
[1745565235150,10.86030001,153.61,153.57,10.86030001]
[1745565235353,10.86030001,153.63,153.58,10.86030001]
[1745565235657,10.86030001,153.62,153.57,10.86030001]
[1745565236074,10.86030001,153.61,153.57,10.86030001]
[1745565236255,10.86030001,153.62,153.58,10.86030001]
[1745565237475,10.86030001,153.63,153.58,10.86030001]
[1745565237959,10.86030001,153.62,153.58,10.86030001]
[1745565238368,10.86030001,153.62,153.57,10.86030001]
[1745565239594,10.86030001,153.61,153.56,13.603]
[1745565239757,10.86030001,153.6,153.56,13.603]
[1745565240083,10.86030001,153.6,153.56,0.063]
[1745565240679,18.64964886,153.66,153.59,10.86030001]
[1745565240893,10.86030001,153.65,153.61,10.86030001]
[1745565241180,10.86030001,153.65,153.6,10.86030001]
[1745565241897,26.0,153.67,153.62,10.86030001]
[1745565242060,39.68216157,153.7,153.62,10.86030001]
[1745565242061,13.54,153.7,153.62,10.86030001]
[1745565242258,10.86030001,153.66,153.62,10.86030001]
[1745565242594,10.86030001,153.65,153.6,10.86030001]
[1745565242765,18.64964886,153.69,153.61,10.86030001]
[1745565243093,10.86030001,153.65,153.61,10.86030001]
[1745565243252,10.86030001,153.65,153.6,10.86030001]
[1745565243792,10.86030001,153.64,153.6,10.86030001]
[1745565244083,10.86030001,153.64,153.58,13.54]
[1745565244084,10.86030001,153.64,153.59,10.86030001]
[1745565245389,10.86030001,153.64,153.6,10.86030001]
[1745565245588,10.86030001,153.65,153.6,10.86030001]
[1745565246292,10.86030001,153.63,153.59,10.86030001]
[1745565246500,10.86030001,153.62,153.57,81.34216157]
[1745565246701,10.86030001,153.58,153.56,0.063]
[1745565247000,10.86030001,153.57,153.56,0.063]
[1745565247672,26.0,153.62,153.56,0.063]
[1745565247881,10.86030001,153.59,153.56,0.063]
[1745565249194,10.86030001,153.58,153.56,0.063]
[1745565249795,10.86030001,153.59,153.56,0.063]
[1745565250678,10.86030001,153.6,153.56,0.063]
[1745565251198,26.0,153.62,153.57,10.86030001]
[1745565251199,10.86030001,153.61,153.57,10.86030001]
[1745565252079,10.86030001,153.61,153.56,0.063]
[1745565252265,10.86030001,153.57,153.56,0.063]
[1745565253094,29.50994887,153.57,153.56,0.063]
[1745565253866,10.86030001,153.57,153.56,0.063]
[1745565254789,29.50994887,153.57,153.56,0.063]
[1745565257891,29.50994887,153.57,153.54,0.063]
[1745565257892,26.0,153.55,153.54,0.04261]
[1745565258099,36.86030001,153.55,153.54,0.04261]
[1745565258397,18.64964886,153.54,153.52,0.063]
[1745565258695,10.86030001,153.53,153.52,0.063]
[1745565258901,36.86030001,153.53,153.52,0.063]
[1745565259070,47.72060002,153.53,153.52,0.063]
[1745565259270,21.72060002,153.53,153.52,0.063]
[1745565259673,10.86030001,153.53,153.52,0.063]
[1745565260396,21.72060002,153.53,153.52,0.063]
[1745565261203,40.37024888,153.53,153.52,0.063]
[1745565262005,40.51241045,153.53,153.52,0.063]
[1745565262173,40.37024888,153.53,153.52,0.063]
[1745565263978,44.64964886,153.5,153.49,0.063]
[1745565264212,55.50994887,153.5,153.49,0.063]
[1745565264871,55.50994887,153.5,153.45,0.063]
[1745565265081,10.86030001,153.46,153.45,0.063]
[1745565265318,29.50994887,153.46,153.45,0.063]
[1745565269292,40.37024888,153.46,153.45,0.063]
[1745565269692,53.85024888,153.46,153.45,0.063]
[1745565270790,42.98994887,153.46,153.45,0.063]
[1745565271218,62.39994887,153.46,153.45,0.063]
[1745565271410,62.54211044,153.46,153.45,0.063]
[1745565271617,62.39994887,153.46,153.45,0.063]
[1745565272721,73.40241045,153.46,153.45,0.063]
[1745565273419,62.54211044,153.46,153.45,0.063]
[1745565274342,26.0,153.43,153.42,0.063]
[1745565274626,36.86030001,153.43,153.42,0.063]
[1745565276031,55.50994887,153.43,153.42,0.063]
[1745565276807,18.64964886,153.42,153.4,0.063]
[1745565277029,55.65211044,153.41,153.4,0.063]
[1745565277245,10.86030001,153.35,153.34,1.5739]
[1745565277532,10.86030001,153.36,153.34,1.5739]
[1745565277938,10.86030001,153.36,153.35,0.063]
[1745565279015,18.64964886,153.4,153.35,0.063]
[1745565279230,10.86030001,153.37,153.35,0.063]
[1745565279542,10.86030001,153.39,153.35,10.92330001]
[1745565280232,10.86030001,153.38,153.35,0.063]
[1745565280417,18.64964886,153.4,153.35,0.063]
[1745565280418,10.86030001,153.4,153.36,10.86030001]
[1745565280624,26.0,153.41,153.37,10.86030001]
[1745565280835,36.86030001,153.41,153.36,10.86030001]
[1745565281228,10.86030001,153.4,153.36,10.86030001]
[1745565282321,10.86030001,153.4,153.35,0.063]
[1745565282521,10.86030001,153.4,153.35,10.92330001]
[1745565283044,10.86030001,153.4,153.35,0.063]
[1745565283214,10.86030001,153.39,153.35,0.063]
[1745565283419,10.86030001,153.39,153.35,10.92330001]
[1745565283826,10.86030001,153.4,153.35,10.92330001]
[1745565284650,10.86030001,153.39,153.35,10.92330001]
[1745565285342,10.86030001,153.4,153.35,10.92330001]
[1745565285541,10.86030001,153.4,153.36,10.86030001]
[1745565287323,10.86030001,153.39,153.35,10.92330001]
[1745565287541,10.86030001,153.36,153.35,0.063]
[1745565291824,26.0,153.34,153.33,0.063]
[1745565292029,55.50994887,153.34,153.24,10.86030001]
[1745565292353,10.86030001,153.3,153.25,10.86030001]
[1745565292534,10.86030001,153.3,153.26,10.86030001]
[1745565292738,10.86030001,153.31,153.27,1.6619]
[1745565293140,26.0,153.34,153.27,1.6619]
[1745565293441,10.86030001,153.28,153.23,12.52220001]
[1745565293630,10.86030001,153.27,153.23,12.52220001]
[1745565293955,10.86030001,153.28,153.24,10.86030001]
[1745565294140,10.86030001,153.29,153.24,10.86030001]
[1745565294549,10.86030001,153.28,153.24,10.86030001]
[1745565295139,10.86030001,153.28,153.23,1.6619]
[1745565295356,10.86030001,153.27,153.23,12.52220001]
[1745565296045,10.86030001,153.28,153.23,12.52220001]
[1745565296451,10.86030001,153.27,153.23,1.6619]
[1745565296960,10.86030001,153.26,153.23,1.6619]
[1745565297265,10.86030001,153.25,153.23,1.6619]
[1745565297442,10.86030001,153.26,153.23,1.6619]
[1745565299156,10.86030001,153.27,153.23,12.52220001]
[1745565299338,26.0,153.3,153.24,10.86030001]
[1745565299339,10.86030001,153.28,153.24,10.86030001]
[1745565299655,10.86030001,153.29,153.24,10.86030001]
[1745565299841,10.86030001,153.28,153.24,10.86030001]
[1745565300848,26.0,153.32,153.27,10.86030001]
[1745565301052,10.86030001,153.32,153.27,10.86030001]
[1745565301376,10.86030001,153.29,153.23,83.00406157]
[1745565301534,10.86030001,153.28,153.23,1.6619]
[1745565301737,10.86030001,153.28,153.24,10.86030001]
[1745565302459,10.86030001,153.27,153.23,12.52220001]
[1745565302670,10.86030001,153.25,153.23,1.6619]
[1745565302978,10.86030001,153.26,153.23,1.6619]
[1745565303271,10.86030001,153.24,153.23,1.6619]
[1745565303557,10.86030001,153.24,153.21,13.46]
[1745565303931,10.86030001,153.24,153.2,10.92330001]
[1745565304170,10.86030001,153.25,153.2,10.92330001]
[1745565304334,1.13616157,153.32,153.22,10.86030001]
[1745565304335,18.64964886,153.31,153.22,10.86030001]
[1745565304541,10.86030001,153.27,153.23,10.86030001]
[1745565304753,10.86030001,153.24,153.2,0.20516157]
[1745565305056,10.86030001,153.26,153.22,10.86030001]
[1745565305432,10.86030001,153.27,153.22,10.86030001]
[1745565305868,10.86030001,153.27,153.23,10.86030001]
[1745565306165,10.86030001,153.27,153.22,10.86030001]
[1745565306360,10.86030001,153.28,153.23,10.86030001]
[1745565306754,10.86030001,153.29,153.25,12.36590001]
[1745565306944,10.86030001,153.29,153.25,1.5056]
[1745565308966,26.0,153.32,153.27,10.86030001]
[1745565309170,26.0,153.32,153.25,1.5056]
[1745565309171,10.86030001,153.31,153.26,10.86030001]
[1745565309668,10.86030001,153.3,153.26,10.86030001]
[1745565309849,10.86030001,153.31,153.26,10.86030001]
[1745565310061,81.4542771,153.35,153.28,10.86030001]
[1745565310251,10.86030001,153.32,153.28,10.86030001]
[1745565310562,81.4542771,153.35,153.27,10.86030001]
[1745565310742,10.86030001,153.34,153.29,10.86030001]
[1745565310937,10.86030001,153.32,153.25,16.4324075]
[1745565311171,10.86030001,153.3,153.25,14.9856]
[1745565311350,10.86030001,153.29,153.25,14.9856]
[1745565313074,10.86030001,153.29,153.25,25.84590001]
[1745565313273,10.86030001,153.28,153.25,14.9856]
[1745565314583,10.86030001,153.29,153.25,14.9856]
[1745565315077,10.86030001,153.31,153.26,10.86030001]
[1745565315375,10.86030001,153.32,153.27,10.86030001]
[1745565316577,10.86030001,153.33,153.28,10.86030001]
[1745565316972,62.80462824,153.35,153.28,10.86030001]
[1745565317271,10.86030001,153.32,153.28,10.86030001]
[1745565318576,10.86030001,153.33,153.28,10.86030001]
[1745565321563,10.86030001,153.29,153.25,40.9856]
[1745565321765,18.64964886,153.34,153.25,40.9856]
[1745565321973,10.86030001,153.29,153.25,14.9856]
[1745565322488,10.86030001,153.29,153.25,25.84590001]
[1745565323480,10.86030001,153.3,153.25,25.84590001]
[1745565323973,10.86030001,153.3,153.26,10.86030001]
[1745565325061,10.86030001,153.3,153.25,25.84590001]
[1745565325898,62.80462824,153.35,153.25,25.84590001]
[1745565325899,62.80462824,153.35,153.27,10.86030001]
[1745565326099,10.86030001,153.32,153.27,10.86030001]
[1745565326595,10.86030001,153.32,153.28,10.86030001]
[1745565327093,10.86030001,153.33,153.28,10.86030001]
[1745565328383,29.599211,153.35,153.32,10.86030001]
[1745565328590,29.599211,153.35,153.34,10.86030001]
[1745565328976,29.599211,153.35,153.32,1.5258]
[1745565329297,29.599211,153.35,153.32,12.38610001]
[1745565329471,10.86030001,153.34,153.32,1.5258]
[1745565329817,10.86030001,153.33,153.29,36.86030001]
[1745565330095,10.86030001,153.34,153.3,10.86030001]
[1745565330586,40.45951101,153.35,153.3,10.86030001]
[1745565331481,10.86030001,153.34,153.3,10.86030001]
[1745565333191,40.45951101,153.35,153.3,10.86030001]
[1745565334583,40.45951101,153.35,153.31,10.86030001]
[1745565334786,40.45951101,153.35,153.32,10.86030001]
[1745565334787,29.599211,153.35,153.32,10.86030001]
[1745565335376,29.599211,153.35,153.33,10.86030001]
[1745565336070,29.599211,153.35,153.34,12.36590001]
[1745565337396,29.599211,153.35,153.34,14.77139013]
[1745565340784,29.599211,153.35,153.34,12.36590001]
[1745565341798,29.599211,153.35,153.34,19.02951716]
[1745565341979,29.599211,153.35,153.34,25.41761716]
[1745565342883,29.599211,153.35,153.34,27.81626295]
[1745565343607,29.599211,153.35,153.34,21.29480737]
[1745565344696,29.599211,153.35,153.34,3.90424579]
[1745565344878,29.599211,153.35,153.34,2.39864579]
[1745565345194,40.45951101,153.35,153.34,2.39864579]
[1745565345383,40.45951101,153.35,153.27,8.25623174]
[1745565345384,40.45951101,153.35,153.27,10.86030001]
[1745565345590,10.86030001,153.31,153.27,10.86030001]
[1745565347381,10.86030001,153.32,153.28,10.86030001]
[1745565347575,29.599211,153.35,153.3,10.86030001]
[1745565347795,29.599211,153.35,153.26,35.47540497]
[1745565347796,10.86030001,153.33,153.29,10.86030001]
[1745565348691,29.599211,153.35,153.29,10.86030001]
[1745565348886,10.86030001,153.33,153.29,10.86030001]
[1745565349486,10.86030001,153.33,153.26,35.47540497]
[1745565349698,10.86030001,153.33,153.28,10.86030001]
[1745565350400,10.86030001,153.33,153.29,10.86030001]
[1745565350907,10.86030001,153.34,153.3,10.86030001]
[1745565352819,18.73891099,153.3,153.29,10.86030001]
[1745565353491,18.73891099,153.3,153.29,26.0]
[1745565355106,18.73891099,153.3,153.29,36.86030001]
[1745565355408,18.73891099,153.3,153.29,43.38388276]
[1745565355711,18.73891099,153.3,153.29,43.52604433]
[1745565356105,18.73891099,153.3,153.29,62.17569319]
[1745565357322,18.73891099,153.3,153.29,45.92699303]
[1745565357995,18.73891099,153.3,153.29,2.54311027]
[1745565358219,18.73891099,153.3,153.29,2.4009487]
[1745565360628,18.73891099,153.3,153.29,13.26124871]
[1745565360925,18.73891099,153.3,153.29,19.92699303]
[1745565362329,18.73891099,153.3,153.29,45.92699303]
[1745565367827,18.73891099,153.3,153.29,28.4009487]
[1745565368025,18.73891099,153.3,153.29,39.26124871]
[1745565368531,18.73891099,153.3,153.29,13.26124871]
[1745565369128,18.73891099,153.3,153.29,19.78483146]
[1745565369329,18.73891099,153.3,153.29,19.92699303]
[1745565372225,18.73891099,153.3,153.29,45.92699303]
[1745565373244,18.73891099,153.3,153.29,2.4009487]
[1745565374736,18.73891099,153.3,153.28,94.56]
[1745565374936,18.73891099,153.3,153.29,11.00246158]
[1745565375811,18.73891099,153.3,153.29,37.00246158]
[1745565376120,18.73891099,153.3,153.29,26.14216157]
[1745565376321,18.73891099,153.3,153.29,39.4134738]
[1745565376640,18.73891099,153.3,153.29,28.41101222]
[1745565376820,18.73891099,153.3,153.29,39.27131223]
[1745565377728,18.73891099,153.3,153.29,28.41101222]
[1745565377927,18.73891099,153.3,153.29,39.4134738]
[1745565378120,18.73891099,153.3,153.29,45.93705655]
[1745565379712,18.73891099,153.3,153.29,147.09095625]
[1745565379914,0.03,153.37,153.32,26.0]
[1745565380135,0.03,153.37,153.35,10.86030001]
[1745565381139,0.03,153.37,153.36,10.86030001]
[1745565381327,0.03,153.37,153.35,10.86030001]
[1745565382836,0.03,153.37,153.36,10.86030001]
[1745565384248,0.03,153.37,153.36,13.41089298]
[1745565384478,0.03,153.37,153.36,49.44144696]
[1745565384939,0.03,153.37,153.36,130.64144696]
[1745565385318,0.03,153.37,153.36,131.94499892]
[1745565385710,0.03,153.37,153.36,133.57139892]
[1745565385914,0.03,153.4,153.39,44.64964886]
[1745565386155,0.03,153.4,153.39,70.17549168]
[1745565386347,0.03,153.4,153.39,157.89482149]
[1745565386520,0.03,153.4,153.39,150.07211044]
[1745565386713,0.03,153.4,153.39,152.48054184]
[1745565387122,0.03,153.4,153.39,122.97059297]
[1745565387353,0.03,153.4,153.39,107.68873141]
[1745565387648,0.03,153.4,153.39,109.13451055]
[1745565387948,0.03,153.4,153.39,107.83089298]
[1745565388115,0.03,153.4,153.39,135.13449888]
[1745565388336,0.03,153.4,153.39,134.30347755]
[1745565390245,0.03,153.4,153.39,127.78414774]
[1745565390965,0.03,153.4,153.39,109.13449888]
[1745565391473,0.03,153.4,153.39,135.13449888]
[1745565391645,0.03,153.4,153.39,153.78414774]
[1745565391852,0.03,153.4,153.39,152.48054184]
[1745565393477,0.03,153.4,153.39,133.83089298]
[1745565394374,0.03,153.4,153.39,133.83089246]
[1745565394946,0.03,153.4,153.39,135.13433443]
[1745565395474,0.03,153.4,153.39,160.3033131]
[1745565395648,0.03,153.4,153.39,158.99987113]
[1745565396177,0.03,153.4,153.39,132.99987113]
[1745565396470,0.03,153.4,153.39,134.30304777]
[1745565397879,0.03,153.42,153.41,55.65211044]
[1745565398085,0.03,153.42,153.41,138.15517955]
[1745565398257,0.03,153.42,153.41,139.26054184]
[1745565399284,0.03,153.42,153.41,120.61089298]
[1745565399778,0.03,153.42,153.41,118.20246158]
[1745565400074,0.03,153.42,153.41,143.37059033]
[1745565400886,0.03,153.42,153.41,136.85211044]
[1745565402653,0.03,153.42,153.41,118.20246158]
[1745565402842,0.03,153.42,153.41,10.86030001]
[1745565403560,0.03,153.42,153.4,10.86030001]
[1745565404574,0.03,153.42,153.39,10.86030001]
[1745565404747,0.03,153.42,153.37,94.42]
[1745565404945,0.03,153.42,153.4,10.86030001]
[1745565405378,0.03,153.42,153.41,10.86030001]
[1745565405751,0.03,153.42,153.4,10.86030001]
[1745565406076,0.03,153.42,153.39,10.86030001]
[1745565408170,0.03,153.42,153.38,10.86030001]
[1745565408482,0.03,153.42,153.37,120.42]
[1745565408483,10.89030001,153.42,153.37,131.28030001]
[1745565408662,10.86030001,153.41,153.37,50.08030001]
[1745565408985,10.86030001,153.41,153.37,39.22]
[1745565409161,10.86030001,153.41,153.36,24.08030001]
[1745565409758,0.03,153.42,153.36,24.08030001]
[1745565409759,10.86030001,153.4,153.36,13.22]
[1745565409983,10.86030001,153.4,153.36,10.86030001]
[1745565410160,10.86030001,153.41,153.36,10.86030001]
[1745565410496,10.86030001,153.41,153.37,10.86030001]
[1745565410786,10.89030001,153.42,153.37,10.86030001]
[1745565412355,10.86030001,153.41,153.37,10.86030001]
[1745565413805,10.86030001,153.4,153.35,26.0]
[1745565413964,10.86030001,153.38,153.33,13.16]
[1745565414152,10.86030001,153.38,153.34,10.86030001]
[1745565415299,6.96589234,153.38,153.34,6.96589234]
[1745565415793,6.96589234,153.38,153.33,39.16]
[1745565415794,6.96589234,153.37,153.33,13.16]
[1745565416177,6.96589234,153.38,153.33,20.12589234]
[1745565417005,6.96589234,153.4,153.35,6.96589234]
[1745565417162,6.96589234,153.39,153.33,13.16]
[1745565417364,10.88457185,153.38,153.33,24.04457185]
[1745565417595,10.88457185,153.37,153.33,24.04457185]
[1745565417993,10.88457185,153.39,153.34,10.88457185]
[1745565418185,10.88457185,153.38,153.34,10.88457185]
[1745565419602,10.88457185,153.38,153.33,24.04457185]
[1745565420512,10.88457185,153.35,153.3,107.263]
[1745565420671,10.88457185,153.34,153.3,120.423]
[1745565420994,10.88457185,153.33,153.3,120.423]
[1745565421204,10.88457185,153.33,153.3,39.223]
[1745565421515,10.88457185,153.32,153.3,13.223]
[1745565424016,32.2478,153.38,153.3,13.223]
[1745565424017,10.88457185,153.34,153.3,24.10757185]
[1745565424313,32.2478,153.38,153.3,13.223]
[1745565424314,10.88457185,153.33,153.3,13.223]
[1745565424542,10.46746603,153.33,153.3,13.223]
[1745565424812,10.46746603,153.33,153.3,0.063]
[1745565425104,10.88457185,153.32,153.3,0.063]
[1745565425806,10.88457185,153.33,153.3,0.063]
[1745565426403,10.88457185,153.32,153.3,0.063]
[1745565427208,10.88457185,153.33,153.3,0.063]
[1745565430122,18.64964886,153.37,153.3,10.94757185]
[1745565430123,10.88457185,153.34,153.3,10.94757185]
[1745565430418,10.88457185,153.35,153.3,10.94757185]
[1745565432402,10.88457185,153.34,153.3,0.063]
[1745565432607,10.88457185,153.33,153.3,0.063]
[1745565432906,10.88457185,153.32,153.3,0.063]
[1745565433315,10.88457185,153.31,153.3,0.063]
[1745565434507,6.355,153.32,153.3,0.063]
[1745565434702,0.994,153.34,153.3,0.063]
[1745565434703,10.88457185,153.31,153.3,0.063]
[1745565435409,10.88457185,153.32,153.3,0.063]
[1745565437043,10.88457185,153.31,153.3,0.063]
[1745565437415,6.97344862,153.31,153.3,0.063]
[1745565439145,0.994,153.34,153.3,0.063]
[1745565439431,6.97344862,153.31,153.3,0.063]
[1745565441539,60.24879448,153.36,153.3,0.063]
[1745565441716,6.97344862,153.32,153.3,0.063]
[1745565443827,32.355,153.36,153.3,0.063]
[1745565444027,6.97344862,153.34,153.3,0.063]
[1745565444227,6.2161,153.4,153.33,6.97344862]
[1745565444570,6.97344862,153.36,153.31,6.97344862]
[1745565445144,6.97344862,153.34,153.3,21.66474862]
[1745565445456,6.97344862,153.31,153.3,0.063]
[1745565445732,73.53744334,153.36,153.3,0.063]
[1745565445733,6.97344862,153.33,153.3,0.063]
[1745565445932,6.97344862,153.35,153.3,7.03644862]
[1745565446341,6.97344862,153.34,153.3,0.063]
[1745565446515,6.97344862,153.33,153.3,0.063]
[1745565447325,6.97344862,153.34,153.3,0.063]
[1745565447945,6.97344862,153.35,153.31,6.97344862]
[1745565448312,6.97344862,153.36,153.31,6.97344862]
[1745565448517,6.97344862,153.36,153.32,6.97344862]
[1745565448837,6.97344862,153.37,153.32,6.97344862]
[1745565449235,6.97344862,153.35,153.31,8.57134862]
[1745565449445,6.97344862,153.35,153.31,1.5979]
[1745565449946,6.97344862,153.34,153.3,7.03644862]
[1745565450154,6.97344862,153.33,153.3,0.063]
[1745565451830,6.97344862,153.35,153.3,7.03644862]
[1745565452080,6.97344862,153.36,153.31,6.97344862]
[1745565452259,6.97344862,153.37,153.32,6.97344862]
[1745565452855,6.97344862,153.36,153.3,0.063]
[1745565453043,6.97344862,153.36,153.31,6.97344862]
[1745565453238,6.97344862,153.35,153.31,6.97344862]
[1745565454831,6.97344862,153.35,153.3,7.03644862]
[1745565455651,6.97344862,153.35,153.31,6.97344862]
[1745565455854,6.97344862,153.35,153.3,0.063]
[1745565456061,6.97344862,153.35,153.31,6.97344862]
[1745565456370,51.85974886,153.4,153.32,6.97344862]
[1745565456571,6.97344862,153.38,153.33,6.97344862]
[1745565457249,6.97344862,153.37,153.32,6.97344862]
[1745565457443,6.97344862,153.36,153.32,6.97344862]
[1745565457752,18.64964886,153.39,153.31,6.97344862]
[1745565457933,6.97344862,153.36,153.31,6.97344862]
[1745565458133,6.97344862,153.34,153.3,7.03644862]
[1745565458641,6.97344862,153.34,153.3,0.063]
[1745565458844,6.97344862,153.34,153.3,7.03644862]
[1745565459349,6.97344862,153.34,153.31,2.40644102]
[1745565459583,6.97344862,153.35,153.31,2.40644102]
[1745565459859,6.97344862,153.35,153.31,9.37988964]
[1745565460058,18.64964886,153.39,153.31,9.37988964]
[1745565460257,6.97344862,153.35,153.31,9.37988964]
[1745565460469,6.97344862,153.35,153.32,2.40644102]
[1745565461351,6.97344862,153.35,153.3,7.03644862]
[1745565461661,6.97344862,153.34,153.3,7.03644862]
[1745565462037,6.97344862,153.34,153.31,2.40868925]
[1745565462676,6.97344862,153.35,153.32,2.40868925]
[1745565463334,6.97344862,153.34,153.32,2.40868925]
[1745565463554,6.97344862,153.34,153.31,2.40868925]
[1745565464269,6.97344862,153.33,153.31,2.40868925]
[1745565464469,6.97344862,153.33,153.3,0.063]
[1745565464764,6.97344862,153.34,153.3,0.063]
[1745565465165,18.64964886,153.35,153.3,0.063]
[1745565465473,6.97344862,153.31,153.3,0.063]
[1745565467943,25.62309748,153.31,153.3,0.063]
[1745565475867,25.76525905,153.31,153.3,0.063]
[1745565476269,25.62309748,153.31,153.3,0.063]
[1745565479379,18.64964886,153.3,153.24,0.063]
[1745565479586,6.97344862,153.25,153.24,0.063]
[1745565479763,25.62309748,153.25,153.24,0.063]
[1745565482191,6.97344862,153.25,153.24,0.063]
[1745565482379,39.22,153.28,153.24,0.063]
[1745565482380,18.64964886,153.28,153.24,0.063]
[1745565482578,6.97344862,153.25,153.24,0.063]
[1745565484488,6.97344862,153.26,153.24,0.063]
[1745565485371,6.97344862,153.25,153.24,0.063]
[1745565486888,46.54344334,153.28,153.24,0.063]
[1745565487070,6.97344862,153.25,153.24,0.063]
[1745565488762,25.62309748,153.25,153.24,0.063]
[1745565490887,25.76525905,153.25,153.24,0.063]
[1745565491253,30.8716662,153.25,153.24,0.063]